Cogmind - Beta 16.1 @@@ ROGUE MODE // 2026.06.20 @ 14:14:07 Player: Minty Result: Escaped! Performance ------------- Evolutions (9) 4500 Regions Visited (17) 3400 Robots Destroyed (182) 910 Value Destroyed (11686) 11686 Prototype IDs (57) 1140 Alien Tech Used (6) 1200 Bonus (12257) 12257 TOTAL SCORE: 35093 Bonus ------- High Alert Combat Kills 1173 Follower Combat Kills 5151 Entered Garrisons 200 Registered with UFD 300 Met Optimus in HQ 500 Built Enhanced Grunts 300 Met R17 at Cetus 500 Met R17 at Research 2000 Win 3000 Friendly Fire -867 Cogmind --------- Core Integrity 1304/1600 Matter 263/300 Energy 375/485 System Corruption 7% Temperature Cool (43) Movement Walking (187) Ox1 Location To Epsilon Eridani Parts ------- > --- POWER (2) -------- Compact Particle Reactor Matter Drive > --- PROPULSION (7) --- Flexi-carbon Leg Flexi-carbon Leg Myomer Leg Myomer Leg Biometal Leg Biometal Leg Centrium Leg > --- UTILITY (10) ----- Advanced Heat Sink Advanced Heat Sink Advanced Heat Sink Advanced Heat Sink Experimental Coolant Injector Huge Storage Unit Energy Well Enhanced Optical Array Advanced Phase Shifter Master Drone Bay (0/1) > --- WEAPON (6) ------- Enhanced Nova Cannon Enhanced Nova Cannon Enhanced Nova Cannon Enhanced Nova Cannon Enhanced Nova Cannon Enhanced Nova Cannon > --- INVENTORY (25) --- Compact Particle Reactor Light Quantum Reactor Medium Treads Armored Heavy Treads Biometal Heavy Treads Improved Matter Compressor (300) Improved Matter Compressor (300) Improved Matter Compressor (300) Advanced Matter Compressor (380) Advanced Matter Compressor (400) Long-range Sensor Array IFF Parser Quantum Capacitor Master Drone Bay (0/1) Terrabomb Terrabomb Hypercooled Linear Accelerator Hypercooled Linear Accelerator Hypercooled Linear Accelerator Advanced Remote Datajack Core Stripper Peak State ------------ > --- POWER ------------ Compact Particle Reactor Compact Particle Reactor > --- PROPULSION ------- Advanced Medium Treads Advanced Medium Treads Advanced Medium Treads Advanced Medium Treads Biometal Medium Treads Armored Heavy Treads > --- UTILITY ---------- Advanced Cryofiber Web Advanced Cooling System Experimental Coolant Injector Huge Storage Unit Improved Matter Compressor Experimental Power Shielding Centrium Medium Armor Plating Centrium Medium Armor Plating > --- WEAPON ----------- Gamma Bomb Array 1B-0RG's Assimilator > --- INVENTORY -------- Compact Particle Reactor Compact Particle Reactor Matter Drive Energy Well Improved Matter Compressor Advanced Matter Compressor Advanced Matter Compressor Triangulator Long-range Sensor Array Long-range Sensor Array Quantum Capacitor Master Drone Bay Subatomic Replicator Terrabomb Terrabomb Heavy Proton Cannon Heavy Neutron Cannon Hardcell Cannon Hypercooled Linear Accelerator Hypercooled Linear Accelerator Hypercooled Linear Accelerator Advanced Remote Datajack Core Stripper [Rating: 220] Favorites ----------- Power Compact Particle Reactor Engine F-cell Engine Power Core Fission Core Reactor Compact Particle Reactor Propulsion Multireflex Exoskeleton Treads Heavy Siege Treads Leg Multireflex Exoskeleton Wheel Subdweller Monowheel Hover Unit Antigrav Array Flight Unit VTOL Module Utility Advanced Heat Sink Device Advanced Heat Sink Storage Huge Storage Unit Processor Enhanced Optical Array Hackware Hacking Suite Protection Experimental Power Shielding Artifact Phase Redirector Weapon Neutron Cannon Energy Gun High-powered Field Laser Energy Cannon Neutron Cannon Ballistic Gun Subdweller Machine Gun Ballistic Cannon Enhanced Hardcell Cannon Launcher Gamma Bomb Array Special Weapon Advanced Remote Datajack Impact Weapon Core Stripper Slashing Weapon Sigix Broadsword Special Melee Weapon 1B-0RG's Assimilator Build | -11 -10 -10 -10 -9 -9 -6 -5 -5 -5 -5 -4 -3 -3 -2 -1 -1 -1 ------- Run | Yrd Mat Min Sub Rec Scr Fac Fac Ext Cet Arc Fac Res Qua Res Acc Gar Acc Slots Evolved 18 | . . . . . . 8 2 . . . 2 2 . 2 2 . . Power 1 | . . . . . . 1 . . . . . . . . . . . Propulsion 5 | . . . . . . 2 2 . . . 1 . . . . . . Utility 8 | . . . . . . 3 . . . . 1 2 . . 2 . . Weapon 4 | . . . . . . 2 . . . . . . . 2 . . . Parts Attached 217 | . 3 13 5 . 6 28 22 13 9 2 19 6 39 14 8 24 6 Power 29 | . . 2 1 . 2 5 5 2 . 2 2 1 4 . . 2 1 Engine 8 | . . 1 1 . 2 2 2 . . . . . . . . . . Core 9 | . . 1 . . . 2 2 2 . 2 . . . . . . . Reactor 12 | . . . . . . 1 1 . . . 2 1 4 . . 2 1 Propulsion 48 | . 2 4 1 . 1 4 2 3 4 . 4 2 8 4 1 5 3 Treads 22 | . 2 . . . . . . . . . 4 2 8 4 1 . 1 Leg 19 | . . 1 . . 1 4 2 3 1 . . . . . . 5 2 Wheel 4 | . . 3 1 . . . . . . . . . . . . . . Hover 2 | . . . . . . . . . 2 . . . . . . . . Flight 1 | . . . . . . . . . 1 . . . . . . . . Utility 75 | . . 3 . . 2 10 7 4 . . 9 2 17 6 7 7 1 Device 39 | . . 2 . . . 6 5 1 . . 7 . 8 2 1 6 1 Storage 7 | . . 1 . . . . 1 . . . . . 2 1 1 1 . Processor 10 | . . . . . 1 4 1 . . . . . 1 . 3 . . Hackware 1 | . . . . . . . . . . . . . . . 1 . . Protection 17 | . . . . . 1 . . 3 . . 2 2 5 3 1 . . Artifact 1 | . . . . . . . . . . . . . 1 . . . . Weapon 65 | . 1 4 3 . 1 9 8 4 5 . 4 1 10 4 . 10 1 Energy Gun 15 | . . 1 . . . 3 8 1 1 . . 1 . . . . . Energy Cannon 14 | . . . . . . 1 . . 1 . 3 . 2 . . 7 . Ballistic Gun 13 | . . 2 2 . 1 3 . 2 2 . 1 . . . . . . Ballistic Cannon 9 | . . . . . . . . . 1 . . . 5 . . 3 . Launcher 9 | . 1 1 1 . . 2 . 1 . . . . . 2 . . 1 Special Weapon 1 | . . . . . . . . . . . . . . 1 . . . Impact Weapon 1 | . . . . . . . . . . . . . 1 . . . . Slashing Weapon 2 | . . . . . . . . . . . . . 2 . . . . Piercing Weapon . | . . . . . . . . . . . . . . . . . . Special Melee Weapon 1 | . . . . . . . . . . . . . . 1 . . . Unidentified Prototypes 28 | . . . . . 1 . 1 2 4 . 2 . 14 2 . . 2 Corrupted Parts 10 | . . . . . . . 1 . . . . . 6 2 . 1 . System Corruption 40 | . . . . . . . 2 . . . . . 28 4 . 6 . Parts Lost 82 | . . 10 4 . . 3 12 3 6 1 . 5 13 12 2 10 1 Power 15 | . . 1 1 . . 2 4 1 1 1 . 1 1 . . 2 . Propulsion 20 | . . 3 2 . . . 1 1 2 . . 1 2 6 . 2 . Utility 25 | . . 2 . . . 1 2 . 1 . . 2 6 5 2 3 1 Weapon 22 | . . 4 1 . . . 5 1 2 . . 1 4 1 . 3 . Highest Loss Streak 9 | . . 6 4 . . 3 7 1 3 1 . 4 4 5 1 9 1 To Critical Strikes 4 | . . . . . . . . . 3 . . . . . . 1 . Average Backups 14 | . 7 7 6 8 7 7 7 15 17 17 17 18 19 22 22 21 20 Power 1 | . 1 1 2 2 2 . . 1 2 . . . 1 2 2 1 1 Propulsion . | . 3 1 . 1 . . . . . 2 2 3 . . . . 2 Utility 5 | . . . . . . 1 3 6 8 8 7 7 7 9 9 9 9 Weapon 4 | . 3 4 3 4 3 1 1 3 3 3 3 4 5 6 6 6 4 Tool/Special . | . . . . . . . . . . . . . . . . . . Unused Backups 25 | . 6 1 1 . 2 1 . 1 1 . 2 . 4 . . . 6 Power 2 | . 1 . . . . . . . . . . . . . . . 1 Propulsion 3 | . 2 . . . . . . . . . . . 1 . . . . Utility 8 | . 1 . 1 . . 1 . . 1 . . . 1 . . . 3 Weapon 7 | . 2 1 . . 2 . . 1 . . . . 1 . . . . Tool/Special 5 | . . . . . . . . . . . 2 . 1 . . . 2 Average Slot Usage (%) 77 | . 85 85 60 63 61 80 80 86 66 79 80 83 82 67 64 79 98 Engine 3 | . 14 3 9 14 11 3 5 5 4 . . . . . . . . Core 2 | . . 10 . . . 4 1 4 5 8 8 . . . . . . Reactor 3 | . . . . . . 1 1 . . . 1 8 8 8 8 8 8 Treads 9 | . 12 20 . . . . . . . . 16 19 22 19 16 9 1 Leg 7 | . 15 3 . . 9 11 15 22 1 . . . . . . 7 25 Device 12 | . . 5 . . . 12 12 11 11 17 19 19 18 11 14 17 25 Storage 7 | . 14 14 14 14 11 5 5 5 5 5 5 4 5 7 9 13 10 Processor 3 | . . . . . . 13 13 5 5 5 4 . . . 1 4 4 Protection 3 | . . . . . 3 1 . 4 4 . 1 12 8 9 3 . . Energy Gun 6 | . 19 13 . . . 5 16 20 5 5 3 1 2 . . . . Energy Cannon 3 | . . . . . . . . . . 5 12 17 6 1 . 9 24 Ballistic Gun 5 | . . 7 15 20 22 14 3 2 9 5 4 . . . . . . Peak Build Rating 220 | . 6 10 17 17 44 103 117 103 98 100 136 150 198 220 215 215 206 Average Rating 109 | . 5 7 8 15 29 79 97 100 83 97 127 147 165 198 205 185 198 On Entrance 92 | 6 6 6 6 17 13 44 102 92 98 93 100 135 150 194 200 211 198 Avg Prop Armor Cover (%) 6 | . . 9 . . 5 . 8 . 2 1 1 . 3 . . 6 6 Naked Turns . | . . . . . . . . . . . . . . . . . . Heaviest Build 207 | 12 13 28 31 31 38 67 116 132 135 141 161 175 175 207 198 198 198 Greatest Support 245 | 20 40 40 26 20 55 91 127 107 87 37 233 245 245 223 230 230 176 Greatest Overweight (x) 10 | . 4 3 8 1 10 1 1 1 8 3 3 . 1 1 . 2 1 Average Overweight (x) . | . . . 1 1 . . . 1 3 3 . . . . . . 1 Largest Inventory Capacity 25 | . 8 15 15 15 15 15 25 25 25 25 25 25 25 25 25 25 25 Average Capacity 21 | . 8 9 15 15 15 15 20 25 25 25 25 25 25 25 25 25 25 Most Carried 25 | . 8 8 14 15 15 15 16 25 25 25 25 25 25 25 25 25 25 Average Carried 19 | . 7 7 9 14 13 14 14 22 24 24 24 24 24 23 24 23 24 Final Capacity 25 | 8 8 15 15 15 15 15 25 25 25 25 25 25 25 25 25 25 25 Final Carried 25 | 6 8 7 14 15 15 15 15 25 25 24 25 24 25 24 25 23 25 Class Distribution -------------------- 22% | Scavenger-Tank 21% | Mutant 17% | Scavenger-Mutant 10% | Commander-Tank 9% | Scavenger-Skirmisher 7% | Scavenger-Executioner 4% | Skirmisher 3% | Scavenger-Gunner 3% | Scavenger-Assassin Dominant Class ---------------- Mutant | -10/Materials Mutant | -10/Mines Scavenger-Mutant | -10/Subcaves Scavenger-Mutant | -9/Recycling Mutant | -9/Scraptown Scavenger-Skirmisher | -6/Factory Scavenger-Gunner | -5/Factory Commander-Tank | -5/Extension Commander-Tank | -5/Cetus Scavenger-Skirmisher | -5/Archives Scavenger-Tank | -4/Factory Scavenger-Tank | -3/Research Scavenger-Tank | -3/Quarantine Scavenger-Mutant | -2/Research Scavenger-Mutant | -1/Access Scavenger-Executioner | -1/Garrison Scavenger-Executioner | -1/Access Resources | -11 -10 -10 -10 -9 -9 -6 -5 -5 -5 -5 -4 -3 -3 -2 -1 -1 -1 ----------- Run | Yrd Mat Min Sub Rec Scr Fac Fac Ext Cet Arc Fac Res Qua Res Acc Gar Acc Matter Collected 11023 | 200 50 298 124 . 176 1020 628 340 525 60 282 90 1521 2591 1490 1569 59 Remotely . | . . . . . . . . . . . . . . . . . . Salvage Created 10111 | . 134 481 187 . 58 1009 1767 1135 68 132 700 492 1550 652 522 996 228 Parts 376 | . 13 21 19 . 1 32 60 28 2 6 25 29 69 23 21 23 4 Haulers Intercepted 5 | . 1 . . . . 1 1 . . . . . . . 1 . 1 Recyclers Shooed 2 | . 1 1 . . . . . . . . . . . . . . . Parts Field Recycled . | . . . . . . . . . . . . . . . . . . Retrieved Matter . | . . . . . . . . . . . . . . . . . . Parts Self-Destructed 6 | . . . 6 . . . . . . . . . . . . . . Prevented . | . . . . . . . . . . . . . . . . . . Parts Restored . | . . . . . . . . . . . . . . . . . . Kills | -11 -10 -10 -10 -9 -9 -6 -5 -5 -5 -5 -4 -3 -3 -2 -1 -1 -1 ------- Run | Yrd Mat Min Sub Rec Scr Fac Fac Ext Cet Arc Fac Res Qua Res Acc Gar Acc Combat Hostiles Destroyed 158 | . 4 8 9 . 1 20 23 15 5 2 11 10 25 6 5 13 1 Melee 3 | . . . . . . . . . . . . . 2 . . 1 . Guns 61 | . 2 4 1 . 1 14 20 13 2 1 2 . 1 . . . . Cannons 50 | . . . . . . 1 . . 1 1 9 10 17 4 . 6 1 AOE 25 | . 2 4 8 . . 5 1 . 2 . . . . 1 2 . . Classes Destroyed 21 | . 3 3 2 . 1 2 3 1 1 . 1 . 2 . . 1 1 Worker 3 | . . 1 . . . 1 . . . . . 1 . . . . . Builder 2 | . . . . . . . . . . . . . 1 1 . . . Tunneler 2 | . . 1 . . . . . . . . . 1 . . . . . Hauler 5 | . 1 . . . . 1 1 . . . . . . . 1 . 1 Recycler 3 | . . 2 . . . . 1 . . . . . . . . . . Turret 1 | . . . 1 . . . . . . . . . . . . . . Watcher 2 | . . . . . . . . . 2 . . . . . . . . Swarmer 17 | . 3 . 3 . . 3 . . . . . 5 . . 1 2 . Grunt 81 | . 1 8 . . . 15 16 4 . . 6 3 10 4 4 10 . Brawler 3 | . . . . . . . 1 2 . . . . . . . . . Duelist 1 | . . . . . . . . 1 . . . . . . . . . Protector 1 | . . . . . . . . 1 . . . . . . . . . Researcher 1 | . . . . . . . . . . . . . 1 . . . . Sentry 14 | . . . . . . 1 2 5 . 2 2 . 1 1 . . . Demolisher 1 | . . . . . . . . . . . . . . . . 1 . Specialist 3 | . . . . . . . . . . . 2 . . . . . 1 Hunter 10 | . . . . . . . 3 1 . . . 2 1 2 . 1 . Programmer 8 | . . . . . . 1 . . . . 1 . 6 . . . . Heavy 1 | . . . . . . . . . . . . . . . . . 1 Behemoth 2 | . . . . . . . 1 1 . . . . . . . . . Cetus Guard 5 | . . . . . . . . . 5 . . . . . . . . Quarantine Guard 7 | . . . . . . . . . . . . . 7 . . . . Subdweller 6 | . . . 6 . . . . . . . . . . . . . . Butcher 2 | . . . . . 1 . . 1 . . . . . . . . . Best Kill Streak 8 | . 4 3 6 . 1 5 8 5 4 2 7 6 4 3 4 5 1 Combat Bots Only 8 | . 3 2 6 . 1 5 8 5 3 2 7 5 4 3 4 5 1 Max Kills in Single Turn 3 | . 3 1 3 . 1 3 2 2 2 1 1 3 1 2 1 2 1 Gunslinging 1 | . . . . . . . 1 1 . . . . . . . . . Exploded 3 | . 1 1 3 . . 3 1 . 1 . . . . 1 1 . . Melee 1 | . . . . . . . . . . . . . 1 . . 1 . Uniques/NPCs Destroyed 1 | . . . . . . . . . . . . 1 . . . . . Revision 17++ (-3/Research) Combat | -11 -10 -10 -10 -9 -9 -6 -5 -5 -5 -5 -4 -3 -3 -2 -1 -1 -1 -------- Run | Yrd Mat Min Sub Rec Scr Fac Fac Ext Cet Arc Fac Res Qua Res Acc Gar Acc Hostile Shots Fired 1473 | . 18 53 34 . 9 94 147 47 53 7 123 110 265 216 68 213 16 Missed 453 | . 6 12 14 . 3 32 36 9 12 2 37 31 68 72 35 83 1 Hits 1020 | . 12 41 20 . 6 62 111 38 41 5 86 79 197 144 33 130 15 Melee 9 | . . . . . 2 . 1 . . . . . . . 6 . . Projectile 1011 | . 12 41 20 . 4 62 110 38 41 5 86 79 197 144 27 130 15 AOE 22 | . . 13 1 . . 1 . 3 . . . . . . . 4 . Critical Strikes 66 | . . . 2 . 2 . 7 4 12 . 2 2 17 5 5 6 2 Actively Blocked 2 | . . . . . . . . . . . . 1 . . 1 . . Part Disruptions 2 | . . . . . . . . . . . . . 2 . . . . Damage Taken 23704 | . 122 828 405 . 169 1070 2205 1118 1128 123 1163 1769 5402 3717 1077 3098 310 Core 2251 | . . 134 52 . 60 142 320 121 131 21 67 69 463 375 44 206 46 Absorbed by Shields 125 | . . . . . . . . 54 38 . . . . . . 33 . Reduced by Siege Mode 700 | . . . . . . . . . . . 320 73 290 . . 17 . Redirected to Core 134 | . . . . . . . . . . . . . 134 . . . . Redirected to Shielding 544 | . . . . . . . . . . . . 193 111 156 84 . . Ignored by Resistances 223 | . . . . . . . . . . . . . 223 . . . . Regen/Repaired (Parts) 2141 | . . . . . . . 145 . . . . . 1008 403 549 36 . Core Remaining (%) 65 | 100 . . . . 1 83 . . . 40 94 . 52 74 . . 81 Volleys Fired 423 | . 3 39 14 . 3 58 55 42 19 3 16 21 84 24 12 24 6 Largest 6 | . 2 2 2 . 2 4 4 4 4 4 4 4 4 1 1 6 6 Hottest 720 | . 70 80 60 . 60 255 295 275 247 272 380 380 384 81 80 720 720 Shots Fired 1136 | . 6 57 25 . 6 168 189 150 58 12 64 71 158 24 12 100 36 Gun 648 | . 3 49 14 . 6 150 188 150 45 6 15 . 22 . . . . Cannon 423 | . . . . . . 12 . . 3 6 49 71 136 14 . 96 36 Launcher 61 | . 3 8 11 . . 6 1 . 10 . . . . 8 11 3 . Special 4 | . . . . . . . . . . . . . . 2 1 1 . Kinetic 345 | . . 18 14 . 6 110 48 30 33 6 9 . 30 . . 41 . Thermal 649 | . . . . . . 52 140 120 15 6 55 71 103 . . 51 36 Explosive 39 | . 3 8 11 . . 6 1 . 10 . . . . . . . . Electromagnetic 99 | . 3 31 . . . . . . . . . . 25 22 11 7 . Robot Hit Streak 32 | . 4 10 7 . 12 13 26 22 22 15 20 32 16 6 3 14 9 Robot Miss Streak 6 | . . 2 1 . . 6 3 4 5 1 4 4 6 5 3 3 3 Penetration Max 1 | . . . . . . . 1 1 1 . 1 . . . . . . Secondary Targets 15 | . . 1 . . . 3 6 5 . . . . . . . . . Max Gunslinging Chain 1 | . . 1 . . . 1 1 1 . . . . . . . . . Capacitor 46 | . . . . . . . . . . . . . 34 12 . . . Shots Hit Robots 737 | . 4 42 11 . 5 114 144 97 46 10 43 26 115 13 5 43 19 Core Hits 505 | . 6 30 19 . 1 109 57 58 31 6 19 16 48 40 28 33 4 Critical Kills 12 | . . . . . . . 7 1 . 1 . . . . . 2 1 Critical Parts Destroyed 8 | . . . . . . 1 6 . . . 1 . . . . . . Critical Strikes 49 | . . . . . . 3 22 8 2 1 1 . 7 . . 4 1 Burn 18 | . . . . . . 2 9 7 . . . . . . . . . Meltdown 3 | . . . . . . . . . . . . . . . . 2 1 Destroy 17 | . . . . . . 1 13 1 . 1 1 . . . . . . Blast 8 | . . . . . . . . . 2 . . . 4 . . 2 . Sever 3 | . . . . . . . . . . . . . 3 . . . . Melee Attacks 22 | . . . . . . . . . . . . . 20 . . 2 . Kinetic 6 | . . . . . . . . . . . . . 4 . . 2 . Impact . | . . . . . . . . . . . . . . . . . . Slashing 16 | . . . . . . . . . . . . . 16 . . . . Piercing . | . . . . . . . . . . . . . . . . . . Sneak Attacks . | . . . . . . . . . . . . . . . . . . Combat Hostiles . | . . . . . . . . . . . . . . . . . . Follow-up Attacks 1 | . . . . . . . . . . . . . 1 . . . . Damage Inflicted 28745 | . 200 965 1269 . 104 2587 2933 2944 2036 329 2003 1409 5734 1799 1045 2420 968 Guns 10388 | . 35 485 27 . 104 2071 2688 2944 1087 174 367 . 406 . . . . Cannons 10821 | . . . . . . 126 . . 132 155 1636 1407 4285 313 . 1814 953 Explosions 6259 | . 165 444 1242 . . 352 238 . 817 . . . . 1486 1045 470 . Melee 1057 | . . . . . . . . . . . . . 1014 . . 43 . Ramming 220 | . . 36 . . . 38 7 . . . . 2 29 . . 93 15 Kinetic 5565 | . . 144 27 . 104 1380 348 641 795 150 215 . 990 . . 771 . Thermal 14976 | . . 91 . . . 817 2454 2303 424 179 1788 1407 3094 402 77 987 953 Explosive 3053 | . 165 353 1242 . . 352 124 . 817 . . . . . . . . Electromagnetic 4039 | . 35 341 . . . . . . . . . . 729 1397 968 569 . Impact . | . . . . . . . . . . . . . . . . . . Slashing 892 | . . . . . . . . . . . . . 892 . . . . Piercing . | . . . . . . . . . . . . . . . . . . Highest Corruption 32 | . 2 2 2 2 . . 3 3 3 3 . . 32 9 1 7 7 Average Corruption 4 | . 2 2 2 2 . . 2 3 3 3 . . 14 6 1 1 7 Corruption Purged . | . . . . . . . . . . . . . . . . . . Corruption Blocked . | . . . . . . . . . . . . . . . . . . Effects 211 | . . 19 3 3 . . 20 37 22 2 . . 51 29 2 12 11 Message Errors 49 | . . 4 . 2 . . 3 8 4 . . . 11 12 1 3 1 Matter Fused 54 | . . 9 2 . . . 3 8 8 1 . . 12 6 . 2 3 Heat Flow Errors 29 | . . 1 1 1 . . 3 4 2 1 . . 6 1 1 3 5 Energy Discharges 24 | . . 1 . . . . 2 5 1 . . . 7 5 . 2 1 Parts Rejected 4 | . . . . . . . 2 . . . . . 2 . . . . Parts Fused 1 | . . . . . . . 1 . . . . . . . . . . Data Loss (minor) 30 | . . 3 . . . . 4 6 5 . . . 9 2 . 1 . Data Loss (major) 6 | . . . . . . . . 2 1 . . . 2 1 . . . Misfires 4 | . . . . . . . 1 1 1 . . . 1 . . . . Alerts 5 | . . . . . . . 1 . . . . . 1 2 . . 1 Weapon Failures 5 | . . 1 . . . . . 3 . . . . . . . 1 . Overload Shots 8 | . . . . . . . 1 5 1 . . . 1 . . . . Overflow Damage 454 | . 6 51 . . . . . . . . . 88 254 21 . 34 . Projectiles 334 | . . . . . . . . . . . . 88 212 . . 34 . Explosions 78 | . 6 51 . . . . . . . . . . . 21 . . . Melee 42 | . . . . . . . . . . . . . 42 . . . . Knockbacks 10 | . . . . . . . . . . . . . 3 . . 7 . Impact 1 | . . . . . . . . . . . . . . . . 1 . Kinetic 8 | . . . . . . . . . . . . . 3 . . 5 . Secondary 1 | . . . . . . . . . . . . . . . . 1 . Self-Inflicted Damage 325 | . 9 83 24 . . . . . . . . . . 98 35 76 . Shots 20 | . 1 2 1 . . . . . . . . . . 9 4 3 . Rammed 18 | . . 9 . . . . . . . . . 1 2 . . 6 . Targets Rammed 26 | . . 10 . . . 3 2 . . . . 1 2 . . 7 1 Kicked 6 | . . . . . . 3 2 . . . . . . . . . 1 Crushed 2 | . . 1 . . . . . . . . . . . . . 1 . Highest Temperature 529 | . 9 134 87 137 24 321 305 160 215 174 36 . 529 341 55 201 182 Average Temperature 88 | . 6 60 33 77 13 76 64 56 47 64 22 . 315 82 55 98 107 Received Heat Transfer 3493 | . 48 192 90 . 73 303 744 244 45 9 198 12 440 767 27 301 . Effects 6 | . . . . . . . . . . . . . 5 1 . . . Shutdowns 1 | . . . . . . . . . . . . . . 1 . . . Energy Bleed 2 | . . . . . . . . . . . . . 2 . . . . Interference 2 | . . . . . . . . . . . . . 2 . . . . Short Circuit 1 | . . . . . . . . . . . . . 1 . . . . Siege Activations 12 | . . . . . . . . . . . 1 2 7 . . 2 . Total Turns 166 | . . . . . . . . . . . 33 25 95 . . 13 . Longest Duration 33 | . . . . . . . . . . . 33 18 25 . . 11 . Martial Activations . | . . . . . . . . . . . . . . . . . . Shielding Activations . | . . . . . . . . . . . . . . . . . . Robots Disrupted 3 | . . . . . . . . . . . . . 2 . 1 . . Combat Hostiles 3 | . . . . . . . . . . . . . 2 . 1 . . Robots Corrupted 10 | . . . . . . . . . . . . . 3 1 3 3 . Combat Hostiles 10 | . . . . . . . . . . . . . 3 1 3 3 . Parts Fried 14 | . . . . . . . . . . . . . 6 . 4 4 . Impact Corruptions . | . . . . . . . . . . . . . . . . . . Robots Melted 8 | . . . . . . . 3 2 . . . . . . . 2 1 Combat Hostiles 6 | . . . . . . . 2 2 . . . . . . . 2 . Parts Melted 33 | . . 1 . . . 1 8 12 . . 1 . 4 . . 2 4 Heat Transferred 14099 | . . 200 . . . 1495 4729 4381 712 150 250 . 445 231 50 737 719 Parts Sabotaged 1 | . . . . . . . . . . . . . . . 1 . . Parts Stolen . | . . . . . . . . . . . . . . . . . . Parts Stripped 35 | . . . . . . . . . . . . . 28 . . 7 . Power Chain Reactions 6 | . . 2 . . . . . . . . . . . 3 1 . . Alert | -11 -10 -10 -10 -9 -9 -6 -5 -5 -5 -5 -4 -3 -3 -2 -1 -1 -1 ------- Run | Yrd Mat Min Sub Rec Scr Fac Fac Ext Cet Arc Fac Res Qua Res Acc Gar Acc Maximum Alert Level 4 | . . . . . . 2 2 2 2 1 . . 2 2 3 4 4 Low Security (%) 43 | . 100 100 . 100 . 65 . 43 22 12 100 100 29 19 . . . Level 1 26 | . . . . . . 27 37 48 56 87 . . 35 20 66 . . Level 2 17 | . . . . . . 6 62 8 20 . . . 34 60 12 . . Level 3 6 | . . . . . . . . . . . . . . . 20 53 63 Level 4 4 | . . . . . . . . . . . . . . . . 46 36 Level 5 . | . . . . . . . . . . . . . . . . . . High Security . | . . . . . . . . . . . . . . . . . . Max Security . | . . . . . . . . . . . . . . . . . . Peak Influence 1501 | . 91 122 . 12 . 509 694 642 482 315 160 150 460 622 918 1501 1199 Initial 900 | . . 31 . . . . 240 291 356 173 95 54 57 246 292 721 900 Average 313 | . 46 31 . . . 139 487 187 300 260 75 70 273 398 460 1072 985 Influence Increases 10111 | . 121 279 110 12 . 851 864 1411 608 172 487 318 1109 1228 932 1160 449 Destroy 0b10 Robot/C 5320 | . 80 160 80 . . 560 480 760 280 80 280 200 620 580 440 540 180 Destroy 0b10 Robot/NC 185 | . 5 20 . . . 30 10 20 10 . . 10 10 25 15 5 25 Destroy Leader 816 | . 22 20 . . . 96 102 94 20 . 60 30 142 82 82 30 36 Allied During Kill 1588 | . . . . . . 33 18 394 177 60 43 . 27 163 341 211 121 Trap Triggered on 0b10 10 | . . . . . . . . . . . 10 . . . . . . Successful Hack 100 | . . . . 12 . 5 4 37 . . 4 38 . . . . . Disable Machine 525 | . . 30 . . . 60 30 45 15 30 30 . 225 30 . . 30 Anti-Garrison Action 600 | . . . . . . . 150 . . . . . . 300 . 150 . Destroy Structure 757 | . 14 34 . . . 37 40 46 106 2 30 40 40 48 39 224 57 Lose Combat Pursuer 210 | . . 15 30 . . 30 30 15 . . 30 . 45 . 15 . . Influence Decreases 8932 | . 40 360 110 12 . 360 759 1371 810 331 659 319 773 1178 518 561 771 Entered New Map 2591 | . . 50 . . . . 251 305 280 261 180 49 45 192 196 181 601 Time Decay 3934 | . 40 267 70 12 . 300 368 495 410 60 276 220 568 446 262 . 140 Lost Part 753 | . . 43 40 . . 20 120 30 60 10 . 50 130 120 20 100 10 Lost Ally 1355 | . . . . . . 40 20 391 60 . 54 . 30 420 40 280 20 Purge Threat 299 | . . . . . . . . 150 . . 149 . . . . . . Squads Dispatched 68 | . 2 . . . . 10 11 1 . . 4 5 9 14 6 . 6 Investigation 20 | . 2 . . . . 6 5 . . . . 2 3 1 1 . . Extermination 11 | . . . . . . 2 1 . . . 2 . 2 2 1 . 1 Reinforcement 18 | . . . . . . 2 2 . . . 2 3 3 2 1 . 3 Assault 13 | . . . . . . . 2 1 . . . . 1 6 1 . 2 Garrison 6 | . . . . . . . 1 . . . . . . 3 2 . . Intercept . | . . . . . . . . . . . . . . . . . . Searches Triggered . | . . . . . . . . . . . . . . . . . . Construction Impeded 3 | . . . . . . 1 . . . . . . . 1 . . 1 Haulers Reinforced 3 | . . . . . . 1 1 . . . . . . . . . 1 Active Scanning Responses . | . . . . . . . . . . . . . . . . . . Cargo Convoy Interrupts . | . . . . . . . . . . . . . . . . . . Stealth | -11 -10 -10 -10 -9 -9 -6 -5 -5 -5 -5 -4 -3 -3 -2 -1 -1 -1 --------- Run | Yrd Mat Min Sub Rec Scr Fac Fac Ext Cet Arc Fac Res Qua Res Acc Gar Acc Distress Signals 22 | . 4 1 . . . 1 2 3 2 . . 4 1 3 . . 1 Communications Jammed . | . . . . . . . . . . . . . . . . . . Distress Signals . | . . . . . . . . . . . . . . . . . . Times Spotted 386 | . 9 10 20 . 11 35 31 38 16 4 19 16 46 51 37 34 9 Peak Tracking Total 9 | . 4 2 6 . 5 6 6 9 5 2 7 6 7 8 7 9 6 Tactical Retreats 11 | . . 1 1 . . 2 1 1 . . 2 . 2 . 1 . . Traps | -11 -10 -10 -10 -9 -9 -6 -5 -5 -5 -5 -4 -3 -3 -2 -1 -1 -1 ------- Run | Yrd Mat Min Sub Rec Scr Fac Fac Ext Cet Arc Fac Res Qua Res Acc Gar Acc Traps Triggered 17 | . 1 . 1 . . 1 2 2 . . . . 1 . 6 3 . Indirectly 6 | . . . . . . . . . . . . . . . 6 . . Trap Hack Attempts . | . . . . . . . . . . . . . . . . . . Triggered . | . . . . . . . . . . . . . . . . . . Disarmed . | . . . . . . . . . . . . . . . . . . Reprogrammed . | . . . . . . . . . . . . . . . . . . Reused 1 | . . . . . . . . . . . 1 . . . . . . Traps Extracted . | . . . . . . . . . . . . . . . . . . Installed 1 | . . . . . . . . . . . 1 . . . . . . Triggered 1 | . . . . . . . . . . . 1 . . . . . . Most Traps Carried 1 | . . . . . 1 1 1 1 1 1 1 . . . . . . Machines | -11 -10 -10 -10 -9 -9 -6 -5 -5 -5 -5 -4 -3 -3 -2 -1 -1 -1 ---------- Run | Yrd Mat Min Sub Rec Scr Fac Fac Ext Cet Arc Fac Res Qua Res Acc Gar Acc Machines Disabled 47 | . . 2 4 . . 4 3 4 2 2 2 . 15 4 . 3 2 Max in Single Turn 3 | . . 2 3 . . 1 3 1 1 1 . . 1 . . 2 2 Garrison Access 4 | . . . . . . 1 1 . . . . . . 2 . . . Garrison Relay 1 | . . . . . . . . . . . . . . . . 1 . Phase Generator 1 | . . . . . . . . . . . . . . . . 1 . Energy Cycler 1 | . . . . . . . . 1 . . . . . . . . . Machines Repaired . | . . . . . . . . . . . . . . . . . . Machines Dismantled . | . . . . . . . . . . . . . . . . . . Machines Sabotaged . | . . . . . . . . . . . . . . . . . . Overloaded Fab Kills . | . . . . . . . . . . . . . . . . . . Hacking | -11 -10 -10 -10 -9 -9 -6 -5 -5 -5 -5 -4 -3 -3 -2 -1 -1 -1 --------- Run | Yrd Mat Min Sub Rec Scr Fac Fac Ext Cet Arc Fac Res Qua Res Acc Gar Acc Machines Accessed 51 | . . 1 1 2 3 10 6 11 1 . 2 4 4 3 2 1 . Terminals 31 | . . 1 . 2 . 3 3 11 1 . 1 4 2 1 1 1 . Fabricators 2 | . . . . . . . . . . . 1 . . 1 . . . Repair Stations 2 | . . . . . . . 1 . . . . . 1 . . . . Recycling Units 6 | . . . . . . 4 2 . . . . . . . . . . Scanalyzers 2 | . . . . . . 1 . . . . . . 1 . . . . Garrison Access 4 | . . . . . . 2 . . . . . . . 1 1 . . Total Hacks 128 | . . 3 1 10 13 20 12 25 1 . 13 9 9 5 3 4 . Successful 59 | . . 1 1 4 13 6 5 15 . . 6 4 2 . 1 1 . Failed 69 | . . 2 . 6 . 14 7 10 1 . 7 5 7 5 2 3 . Catastrophic 21 | . . 1 . 2 . 4 3 . . . . 1 3 4 1 2 . Database Lockouts . | . . . . . . . . . . . . . . . . . . Manual 43 | . . . . 8 . 9 7 2 1 . 9 3 1 . . 3 . Terminals 82 | . . 3 . 10 . 7 5 25 1 . 8 9 5 3 2 4 . Fabricators 6 | . . . . . . . . . . . 5 . . 1 . . . Repair Stations 6 | . . . . . . . 5 . . . . . 1 . . . . Recycling Units 8 | . . . . . . 6 2 . . . . . . . . . . Scanalyzers 6 | . . . . . . 3 . . . . . . 3 . . . . Garrison Access 6 | . . . . . . 4 . . . . . . . 1 1 . . Terminal Hacks 45 | . . 1 1 4 13 2 2 14 . . 3 3 1 . . 1 . Record 5 | . . . . . 5 . . . . . . . . . . . . Robot Analysis 8 | . . . . 1 7 . . . . . . . . . . . . Prototype ID Bank 2 | . . . . 1 . . . . . . . 1 . . . . . Open Door 8 | . . . . . . . 1 7 . . . . . . . . . Branch Access Points 2 | . . . . . . . . 1 . . . 1 . . . . . Emergency Access Points 2 | . . . . . . . . . . . 1 . . . . 1 . Terminal Index 1 | . . . . . . . . 1 . . . . . . . . . Alert Level 7 | . . . . 1 . . 1 3 . . 1 1 . . . . . Unreport Threat 2 | . . . . . . . . 1 . . 1 . . . . . . Locate Traps 3 | . . . . . . 1 . 1 . . . . 1 . . . . Zone Layout 3 | . . 1 . 1 . 1 . . . . . . . . . . . Proto ID Catalog 2 | . . . 1 . 1 . . . . . . . . . . . . Fabricator Hacks 2 | . . . . . . . . . . . 2 . . . . . . Network Status 2 | . . . . . . . . . . . 2 . . . . . . Repair Station Hacks . | . . . . . . . . . . . . . . . . . . Recycling Unit Hacks . | . . . . . . . . . . . . . . . . . . Scanalyzer . | . . . . . . . . . . . . . . . . . . Garrison Access Hacks 2 | . . . . . . 1 . . . . . . . . 1 . . Unlock Access 1 | . . . . . . . . . . . . . . . 1 . . Seal Access 1 | . . . . . . 1 . . . . . . . . . . . Unauthorized Hacks 10 | . . . . . . 3 3 1 . . 1 1 1 . . . . Terminals 2 | . . . . . . . . 1 . . . 1 . . . . . Botnet 2 | . . . . . . . . 1 . . . 1 . . . . . Fabricators 1 | . . . . . . . . . . . 1 . . . . . . Liberate 1 | . . . . . . . . . . . 1 . . . . . . Repair Stations 2 | . . . . . . . 1 . . . . . 1 . . . . Patch 2 | . . . . . . . 1 . . . . . 1 . . . . Recycling Units 5 | . . . . . . 3 2 . . . . . . . . . . Fedlink 4 | . . . . . . 2 2 . . . . . . . . . . Scrapoids 1 | . . . . . . 1 . . . . . . . . . . . Scanalyzers . | . . . . . . . . . . . . . . . . . . Garrison Access . | . . . . . . . . . . . . . . . . . . Data Cores Recovered . | . . . . . . . . . . . . . . . . . . Used . | . . . . . . . . . . . . . . . . . . Hacking Detections 35 | . . 1 . 2 . 7 4 5 1 . 2 4 3 3 2 1 . Full Trace Events 13 | . . . . 2 . 3 2 . . . . 1 2 1 1 1 . Feedback Events . | . . . . . . . . . . . . . . . . . . Feedback Blocked . | . . . . . . . . . . . . . . . . . . Robot Schematics Acquired 3 | . . . . . . . . . . . . . 3 . . . . Robots Built . | . . . . . . . . . . . . . . . . . . Authchips . | . . . . . . . . . . . . . . . . . . Time . | . . . . . . . . . . . . . . . . . . Total Robot Build Rating . | . . . . . . . . . . . . . . . . . . Part Schematics Acquired 10 | . . . . . . . . . . . . . 10 . . . . Parts Built . | . . . . . . . . . . . . . . . . . . Authchips . | . . . . . . . . . . . . . . . . . . Time . | . . . . . . . . . . . . . . . . . . Total Part Build Rating . | . . . . . . . . . . . . . . . . . . Part Studies Acquired . | . . . . . . . . . . . . . . . . . . Parts Repaired . | . . . . . . . . . . . . . . . . . . Time . | . . . . . . . . . . . . . . . . . . Parts Recycled . | . . . . . . . . . . . . . . . . . . Recycled Matter . | . . . . . . . . . . . . . . . . . . Retrieved Matter . | . . . . . . . . . . . . . . . . . . Retrieved Components . | . . . . . . . . . . . . . . . . . . Parts Scanalyzed . | . . . . . . . . . . . . . . . . . . Part Schematics Acquired . | . . . . . . . . . . . . . . . . . . Parts Damaged . | . . . . . . . . . . . . . . . . . . Bothacking | -11 -10 -10 -10 -9 -9 -6 -5 -5 -5 -5 -4 -3 -3 -2 -1 -1 -1 ------------ Run | Yrd Mat Min Sub Rec Scr Fac Fac Ext Cet Arc Fac Res Qua Res Acc Gar Acc Used RIF Installer . | . . . . . . . . . . . . . . . . . . Robots Hacked 3 | . . . . . . . . . . . . . . 1 1 1 . Non-combat . | . . . . . . . . . . . . . . . . . . Combat . | . . . . . . . . . . . . . . . . . . Robot Hacks Applied . | . . . . . . . . . . . . . . . . . . Manual 3 | . . . . . . . . . . . . . . 1 1 1 . Relay Couplers Released 8 | . . . . . . . 2 . . . . . . 2 . 4 . Machine Destruction 8 | . . . . . . . 2 . . . . . . 2 . 4 . Fabnet Peak Effective % . | . . . . . . . . . . . . . . . . . . Robots Rewired 18 | . . . . . . . . 15 . . . . . . . 3 . Allies Hacked 7 | . . . . . . 1 . 1 . . . . 2 1 2 . . Hacks Repelled . | . . . . . . . . . . . . . . . . . . Allies | -11 -10 -10 -10 -9 -9 -6 -5 -5 -5 -5 -4 -3 -3 -2 -1 -1 -1 -------- Run | Yrd Mat Min Sub Rec Scr Fac Fac Ext Cet Arc Fac Res Qua Res Acc Gar Acc Total Allies 78 | . . . . . . 9 1 24 5 . 3 . 3 15 4 13 1 Largest Group 14 | . . . . . . 6 6 14 5 3 4 . 2 2 3 5 3 Highest-Rated Group 482 | . . . . . . 183 183 418 480 288 288 . 146 206 174 482 397 Highest-Rated Ally 219 | . . . . . . 85 37 159 146 96 96 . 82 148 69 219 219 Initial UFD Resources 61 | . . . . . . 24 37 51 51 51 53 57 57 59 61 61 61 Total Orders 7 | . . . . . . 3 1 . . . . . 1 1 . 1 . STAY 1 | . . . . . . 1 . . . . . . . . . . . FOLLOW 2 | . . . . . . 2 . . . . . . . . . . . RETURN 4 | . . . . . . . 1 . . . . . 1 1 . 1 . Ally Attacks 754 | . . . . . . 34 13 200 35 17 27 . 16 158 93 115 46 Total Damage 24589 | . . . . . . 1027 297 4545 1258 749 652 . 530 4949 3879 4955 1748 Kills 138 | . . . . . . 12 1 29 9 2 3 . 6 27 20 17 12 Allies Corrupted 2 | . . . . . . . . . . . . . . . 1 1 . Allies Melted 6 | . . . . . 3 . . . . . . . 1 1 . . 1 Borg Created 20 | . . . . . . . . . . . . . . 11 5 4 . Largest Collective 4 | . . . . . . . . . . . . . . 4 4 4 . Intel | -11 -10 -10 -10 -9 -9 -6 -5 -5 -5 -5 -4 -3 -3 -2 -1 -1 -1 ------- Run | Yrd Mat Min Sub Rec Scr Fac Fac Ext Cet Arc Fac Res Qua Res Acc Gar Acc Active Infowar (turns) 8543 | . . 590 . . . 1088 842 1923 993 121 747 . 310 . 565 1079 285 Optics 6343 | . . . . . . 112 842 1923 993 121 747 . . . 241 1079 285 Sensors 1992 | . . . . . . 976 . . . . . . 236 . 533 247 . IFF 1002 | . . . . . . . . . . . . . . . 565 437 . Structural 132 | . . 132 . . . . . . . . . . . . . . . Traps 319 | . . . . . . 319 . . . . . . . . . . . Seismic 653 | . . 458 . . . 195 . . . . . . . . . . . Triangulation 74 | . . . . . . . . . . . . . 74 . . . . Robot Analysis Total 8 | . . . . 1 7 . . . . . . . . . . . . Derelict Logs Recovered 5 | . . 1 1 . 3 . . . . . . . . . . . . Drone Launches 15 | . . . . . . 2 3 1 2 . . . 1 3 2 . 1 Drone Recoveries 13 | . . . . . . 1 4 1 2 . . . 1 3 . 1 . Exploration | -11 -10 -10 -10 -9 -9 -6 -5 -5 -5 -5 -4 -3 -3 -2 -1 -1 -1 ------------- Run | Yrd Mat Min Sub Rec Scr Fac Fac Ext Cet Arc Fac Res Qua Res Acc Gar Acc Turns Passed 14395 | . 128 1417 303 122 1266 1138 842 1923 993 121 787 578 1716 1119 578 1079 285 Spaces Moved 7026 | 1 80 796 172 101 939 647 416 839 302 49 359 268 754 448 304 430 121 Core 24 | . 1 2 16 . 5 . . . . . . . . . . . . Treads 3122 | . 35 638 . . . . . . . . 338 268 754 448 304 337 . Legs 2993 | 1 44 . . . 815 647 416 839 17 . . . . . . 93 121 Wheels 532 | . . 156 156 101 119 . . . . . . . . . . . . Hover 355 | . . . . . . . . . 285 49 21 . . . . . . Flight . | . . . . . . . . . . . . . . . . . . Fastest Speed 90 | 120 120 90 90 120 120 120 110 183 183 221 175 171 149 149 157 157 186 Average Speed 164 | 120 139 150 139 120 130 132 143 184 255 221 180 171 158 206 160 195 187 Slowest Speed 680 | 120 250 240 450 120 550 200 183 185 680 221 270 175 239 246 161 260 188 Overloaded Moves . | . . . . . . . . . . . . . . . . . . Propulsion Burnouts . | . . . . . . . . . . . . . . . . . . Robots Hopped . | . . . . . . . . . . . . . . . . . . Potential Cave-ins 2 | . . . . . . . . . . . . . . . 1 . 1 Cave-ins Triggered . | . . . . . . . . . . . . . . . . . . Teleports 1 | . . . . . . . . . . . . . 1 . . . . Exploration Rate (%) 36 | 2 22 95 13 26 50 20 13 82 88 75 9 12 77 14 9 44 5 Regions Visited 17 Branch Regions 8 Pre-discovered Areas 1 | . . . . . . 1 . . . . . . . . . . . Known Exits Taken 5 | . . . . . . 1 1 1 . . . 1 . . 1 . . Unknown Exits Taken 11 | 1 1 1 1 1 1 . . . 1 1 1 . 1 1 . . . Scrap Searched 4 | . . 2 . . 2 . . . . . . . . . . . . Spaces Dug 13 | . . . 5 . . 6 1 . . . . 1 . . . . . Terrain Destroyed 467 | . 14 44 43 . . 21 17 12 133 1 12 20 20 4 16 103 7 Melee . | . . . . . . . . . . . . . . . . . . Projectile 87 | . . . . . . 4 1 2 1 1 12 20 20 . . 19 7 AOE 379 | . 14 44 43 . . 17 15 10 132 . . . . 4 16 84 . Terrain Rammed . | . . . . . . . . . . . . . . . . . . Walls Destroyed . | . . . . . . . . . . . . . . . . . . Machines Disabled . | . . . . . . . . . . . . . . . . . . Actions | -11 -10 -10 -10 -9 -9 -6 -5 -5 -5 -5 -4 -3 -3 -2 -1 -1 -1 --------- Run | Yrd Mat Min Sub Rec Scr Fac Fac Ext Cet Arc Fac Res Qua Res Acc Gar Acc Total 8957 | . 93 947 209 103 972 820 530 1115 480 54 457 331 1126 599 372 591 158 Wait 622 | . . 79 7 . 6 55 4 16 127 . 25 24 134 58 28 41 18 Move 7009 | . 79 795 171 100 938 646 415 838 301 48 358 267 753 447 304 429 120 Hop . | . . . . . . . . . . . . . . . . . . Pick Up 91 | . 5 2 5 . 9 3 4 11 3 1 9 5 19 12 1 2 . Fast Attach 126 | . . 9 3 . 1 18 12 2 5 . 6 4 27 8 8 18 5 Attach 79 | . 2 4 4 . 4 4 5 2 7 2 2 4 15 8 4 11 1 Detach 50 | . . 1 3 2 1 3 2 . 6 . 2 2 8 4 6 8 2 Swap 151 | . 1 3 . . 3 16 25 13 8 . 18 . 37 11 3 9 4 Drop 119 | . 3 5 2 1 7 14 6 5 4 . 20 3 28 10 1 9 1 Fire 423 | . 3 39 14 . 3 58 55 42 19 3 16 21 84 24 12 24 6 Melee 21 | . . . . . . . . . . . . . 19 . . 2 . Ram 1 | . . 1 . . . . . . . . . . . . . . . Kick 6 | . . . . . . 3 2 . . . . . . . . . 1 Crush 19 | . . 9 . . . . . . . . . 1 2 . . 7 . Escape Stasis 10 | . . . . . . . . 10 . . . . . . . . . Rewire 204 | . . . . . . . . 176 . . . . . 2 . 26 . Trap 1 | . . . . . . . . . . . 1 . . . . . . Miscellaneous 25 | . . . . . . . . . . . . . . 15 5 5 . Route ------- -11/Scrapyard -10/Materials -10/Mines (discovered 3 exits: [*Mat x2] / *Sub) -10/Subcaves -9/Recycling -9/Scraptown -6/Factory (discovered 2 exits: *Fac x2) -5/Factory -5/Extension (discovered 3 exits: *Fac x2 / *Cet) -5/Cetus (discovered 3 exits: *Fac x2 / [*Arc]) -5/Archives (discovered 2 exits: *Fac / [*Hub]) -4/Factory -3/Research (discovered 3 exits: Arm / *Qua x2) -3/Quarantine -2/Research (discovered 2 exits: *Acc / [*Tes]) -1/Access -1/Garrison -1/Access To Epsilon Eridani History --------- Turn | Location | Event 1 | -11/Scrapyard | Discovered new exit (range 0) 1 | -11/Scrapyard | Entered Materials 65 | -10/Materials | Met 8R-AWN 116 | -10/Materials | Discovered new exit (range 9) 129 | -10/Materials | Entered Mines 131 | -10/Mines | Followed 8R-AWN into the Mines 216 | -10/Mines | Discovered new exit (range 11) 302 | -10/Mines | Build established: Mutant 414 | -10/Mines | Learned location of 1 exit from Materials 508 | -10/Mines | Found a Scrap Suit stashed away for nefarious purposes 711 | -10/Mines | Excavation squad dispatched 711 | -10/Mines | A large section of the Mines collapsed 1347 | -10/Mines | Discovered new exit (range 9) 1394 | -10/Mines | YI-UF0 nonchalantly dropped a Grenade Launcher on the ground 1413 | -10/Mines | Core integrity fell below 50% 1443 | -10/Mines | Lost 6 parts (1p2n1u2w) 1446 | -10/Mines | Met a Derelict testing a Signal Generator 1453 | -10/Mines | Found Signal Generator 1522 | -10/Mines | Discovered new exit (range 5) 1546 | -10/Mines | Entered Subcaves 1547 | -10/Subcaves | Learned Materials stockpile data 1603 | -10/Subcaves | Discovered new exit (range 12) 1627 | -10/Subcaves | Ambushed by swarm of Subdwellers 1634 | -10/Subcaves | Ambushed by Subdwellers from Twisted Machinery 1634 | -10/Subcaves | Ambushed by Subdwellers from Twisted Machinery 1635 | -10/Subcaves | Ambushed by Subdweller buried in earth 1667 | -10/Subcaves | Lost 4 parts (1p2n1w) 1773 | -10/Subcaves | Visited 4L-MR0's lab 1785 | -10/Subcaves | Found Cargo Legs 1789 | -10/Subcaves | Found Prototype Special Melee Weapon 1849 | -10/Subcaves | Entered Recycling 1942 | -9/Recycling | Scanned before Scraplab entrance 1959 | -9/Recycling | Entered Scraplab 1969 | -9/Recycling | Discovered new exit (range 2) 1971 | -9/Recycling | Entered Scraptown 1971 | -9/Scraptown | System corruption cleaned by C-Scrubber 2138 | -9/Scraptown | Scanned Subdweller tech in exchange for log data 2145 | -9/Scraptown | Attached Cargo Legs, gained temporary slots: Utility x2 2148 | -9/Scraptown | Learned 8 Factory zone layouts 2213 | -9/Scraptown | Visited UFD Registry 2213 | -9/Scraptown | Registered with UFD as "Guncell" 2245 | -9/Scraptown | Visited Shadow of the Wyrm 2286 | -9/Scraptown | Visited Spacefarers 2414 | -9/Scraptown | Visited A0-MCA Data Center 2421 | -9/Scraptown | Given an A- rating by A0-MCA 2423 | -9/Scraptown | Found A0-MCA's Component Scanner 2448 | -9/Scraptown | Visited Science Guys 2501 | -9/Scraptown | Visited Abandonware Association 2516 | -9/Scraptown | Learned abandonware demo "REPAIR.EXE" 2516 | -9/Scraptown | Learned abandonware demo "MELTYB.EXE" 2563 | -9/Scraptown | Visited Research Penetration Think Tank 2597 | -9/Scraptown | Visited Analyses Database 2701 | -9/Scraptown | Visited DA-N13 Charitable Foundation 2720 | -9/Scraptown | Found DCF Scrap (30 items) 2815 | -9/Scraptown | Visited Derelict Rescue Squad 2823 | -9/Scraptown | Found DRS Beacon 2933 | -9/Scraptown | Met Optimus 2933 | -9/Scraptown | Accepted into 0bPrime 3029 | -9/Scraptown | Civil war broke out across Scraptown 3043 | -9/Scraptown | Discovered new exit (range 8) 3155 | -9/Scraptown | Identified 1B-0RG's Assimilator 3155 | -9/Scraptown | Found Master Drone Bay 3235 | -9/Scraptown | Core integrity fell below 20% 3237 | -9/Scraptown | Entered Factory 3237 | -6/Factory | Evolved 8 slots: Power x1, Propulsion x2, Utility x3, Weapon x2 3238 | -6/Factory | Identified exit to Factory 3588 | -6/Factory | Spotted B-75 Beast 3598 | -6/Factory | Build established: Skirmisher 3620 | -6/Factory | Master Drone dominated B-75 Beast. 3650 | -6/Factory | Lost 3 parts (2p1u) 3911 | -6/Factory | Build established: Scavenger-Skirmisher 3948 | -6/Factory | Found Exp. Targeting Computer 4026 | -6/Factory | Loaded intel: 8 recycling unit locations 4063 | -6/Factory | Master Drone dominated H-66 Slayer. 4084 | -6/Factory | Master Drone dominated H-66 Slayer. 4157 | -6/Factory | Learned location of Protoforge (-2) 4236 | -6/Factory | Master Drone dominated P-60 Hacker. 4292 | -6/Factory | Discovered exit to Factory (range 21) 4309 | -6/Factory | Scrapoid reinforcements arrived 4375 | -6/Factory | Entered another Factory area 4375 | -5/Factory | Accompanied by 6 allies 4375 | -5/Factory | Evolved 2 slots: Propulsion x2 4376 | -5/Factory | Identified exit to Extension 4423 | -5/Factory | Loaded intel: 8 recycling unit locations 4431 | -5/Factory | Spotted B-75 Beast 4456 | -5/Factory | Destroyed B-75 Beast 4500 | -5/Factory | Lost 6 allies 4584 | -5/Factory | Lost 3 parts (1p1u1w) 4683 | -5/Factory | Garrison activated, responded to threat 4746 | -5/Factory | Destroyed 8 combat bots 4779 | -5/Factory | Build established: Scavenger-Gunner 4814 | -5/Factory | Master Drone dominated B-60 Warrior. 4851 | -5/Factory | Lost 7 parts (3p1n3w) 5105 | -5/Factory | Build established: Scavenger-Skirmisher 5217 | -5/Factory | Entered Extension 5226 | -5/Extension | Disrupted transfer network 5282 | -5/Extension | Rescued a captive Derelict 5473 | -5/Extension | Rescued a captive Derelict 5702 | -5/Extension | Rescued a captive Derelict 5702 | -5/Extension | Rescued a captive Derelict 5717 | -5/Extension | Rescued a captive Derelict 5745 | -5/Extension | Identified exit to Cetus 5753 | -5/Extension | Rescued a captive Derelict 5754 | -5/Extension | Rescued a captive Derelict 5824 | -5/Extension | Build established: Commander-Tank 5838 | -5/Extension | Rescued a captive Derelict 5839 | -5/Extension | Rescued a captive Derelict 6261 | -5/Extension | Build established: Scavenger-Tank 6304 | -5/Extension | Spotted B-75 Beast 6306 | -5/Extension | Spotted B-75 Beast 6309 | -5/Extension | Allies destroyed B-75 Beast 6336 | -5/Extension | Destroyed B-75 Beast 6369 | -5/Extension | Discovered new exit (range 3) 6508 | -5/Extension | Energy Cycler disabled 6509 | -5/Extension | Rescued A7 6509 | -5/Extension | Rescued a captive Derelict 6509 | -5/Extension | Rescued a captive Derelict 6511 | -5/Extension | Rescued a captive Derelict 6517 | -5/Extension | Rescued a captive Derelict 6734 | -5/Extension | Build established: Commander-Tank 7017 | -5/Extension | First assault squad dispatched 7077 | -5/Extension | Discovered new exit (range 21) 7080 | -5/Extension | Lost 9 allies 7140 | -5/Extension | Entered Cetus 7140 | -5/Cetus | Accompanied by 1 ally (A7) 7145 | -5/Cetus | Acquired a Cetus Manufacturing Module code from A7 7157 | -5/Cetus | Spotted Cetus Guard 7161 | -5/Cetus | Spotted Cetus Guard 7161 | -5/Cetus | Spotted Cetus Guard 7165 | -5/Cetus | Spotted Cetus Guard 7174 | -5/Cetus | Allies destroyed Cetus Guard 7183 | -5/Cetus | Destroyed Cetus Guard 7193 | -5/Cetus | Core integrity fell below 50% 7199 | -5/Cetus | Destroyed Cetus Guard 7206 | -5/Cetus | Destroyed Cetus Guard 7228 | -5/Cetus | Extracted ID and sensor layout for unrecognized location from A7's data core 7229 | -5/Cetus | Lost 3 parts (2n1w) 7337 | -5/Cetus | Build established: Scavenger-Tank 7347 | -5/Cetus | Started Cetus Manufacturing Module 7372 | -5/Cetus | Manufactured an Enhanced Grunt 7397 | -5/Cetus | Manufactured an Enhanced Grunt 7405 | -5/Cetus | Discovered new exit (range 22) 7422 | -5/Cetus | Manufactured an Enhanced Grunt 7447 | -5/Cetus | Manufactured an Enhanced Grunt 7472 | -5/Cetus | Manufactured an Enhanced Grunt 7706 | -5/Cetus | Discovered new exit (range 21) 7769 | -5/Cetus | Build established: Commander-Tank 7890 | -5/Cetus | Security sweep announced 7926 | -5/Cetus | Spotted Cetus Guard 7926 | -5/Cetus | Spotted Cetus Guard 7928 | -5/Cetus | Spotted Cetus Guard 7930 | -5/Cetus | Spotted Cetus Guard 7932 | -5/Cetus | Discovered new exit (range 22) 7942 | -5/Cetus | Allies destroyed Cetus Guard 7947 | -5/Cetus | Allies destroyed Cetus Guard 7951 | -5/Cetus | Destroyed Cetus Guard 7953 | -5/Cetus | Destroyed Cetus Guard 7980 | -5/Cetus | Lost 3 parts (1p1u1w) 8024 | -5/Cetus | Met Revision 17 8133 | -5/Cetus | Entered Archives 8133 | -5/Archives | Accompanied by 3 allies 8183 | -5/Archives | Discovered new exit (range 21) 8223 | -5/Archives | Discovered new exit (range 14) 8231 | -5/Archives | Build established: Scavenger-Skirmisher 8254 | -5/Archives | Entered Factory 8254 | -4/Factory | Accompanied by 3 allies 8254 | -4/Factory | Evolved 2 slots: Propulsion x1, Utility x1 8531 | -4/Factory | Found Prototype Device 8531 | -4/Factory | Identified Exp. Thermal Shield 8617 | -4/Factory | Build established: Scavenger-Tank 8880 | -4/Factory | Destroyed 7 combat bots 9034 | -4/Factory | Discovered new exit (range 4) 9041 | -4/Factory | Entered Research 9041 | -3/Research | Evolved 2 slots: Utility x2 9042 | -3/Research | Identified exit to Armory 9241 | -3/Research | Revision forces began assault on 0b10 9283 | -3/Research | Met up with Revision 17++ 9335 | -3/Research | Lost 3 allies 9422 | -3/Research | Destroyed Revision 17++ 9479 | -3/Research | Found Hvy. Reflective Plating 9492 | -3/Research | Lost 4 parts (1p2u1w) 9511 | -3/Research | Identified exit to Quarantine 9619 | -3/Research | Entered Quarantine 9670 | -3/Quarantine | Found Alien Reactor 9863 | -3/Quarantine | Found Quantum Capacitor 9947 | -3/Quarantine | Found Alien Artifact 9947 | -3/Quarantine | Identified Transdimensional Reconstructor 9947 | -3/Quarantine | Warped through subspace 9967 | -3/Quarantine | Found Alien Artifact 9967 | -3/Quarantine | Identified Phase Redirector 10028 | -3/Quarantine | Found Alien Artifact 10039 | -3/Quarantine | Found Alien Artifact 10122 | -3/Quarantine | Master Drone dominated G-67 Veteran. 10126 | -3/Quarantine | Master Drone dominated P-80 Master. 10135 | -3/Quarantine | Mastered Master 8a assimilated hostile I-47 Archangel 10153 | -3/Quarantine | Lost 4 parts (4u) 10158 | -3/Quarantine | Found Alien Artifact 10206 | -3/Quarantine | Cryocooling Duct disabled 10207 | -3/Quarantine | Cryocooling Duct disabled 10221 | -3/Quarantine | Ambient heat levels rising (+20) 10221 | -3/Quarantine | Non-combat units ordered to evacuate 10222 | -3/Quarantine | Ambient heat levels rising (+20) 10222 | -3/Quarantine | Combat units ordered to evacuate 10322 | -3/Quarantine | Quarantine Guard activated 10334 | -3/Quarantine | Found Prototype Processor 10334 | -3/Quarantine | Identified Exp. Melee Analysis Suite 10373 | -3/Quarantine | Found Gamma Bomb Array 10479 | -3/Quarantine | Spotted Quarantine Guard 10497 | -3/Quarantine | Destroyed Quarantine Guard 10565 | -3/Quarantine | Found Alien Slashing Weapon 10565 | -3/Quarantine | Identified Sigix Broadsword 10580 | -3/Quarantine | Discovered new exit (range 3) 10580 | -3/Quarantine | Spotted Quarantine Guard 10616 | -3/Quarantine | Destroyed Quarantine Guard 10667 | -3/Quarantine | Cryocooling Duct disabled 10682 | -3/Quarantine | Ambient heat levels rising (+20) 10703 | -3/Quarantine | Spotted Quarantine Guard 10728 | -3/Quarantine | Destroyed Quarantine Guard 10769 | -3/Quarantine | System corruption reached 10% 10811 | -3/Quarantine | System corruption reached 30% 10819 | -3/Quarantine | Spotted Quarantine Guard 10854 | -3/Quarantine | Destroyed Quarantine Guard 10912 | -3/Quarantine | Spotted Quarantine Guard 10944 | -3/Quarantine | Destroyed Quarantine Guard 11011 | -3/Quarantine | Found Alien Impact Weapon 11011 | -3/Quarantine | Identified Core Stripper 11032 | -3/Quarantine | Build established: Scavenger-Mutant 11123 | -3/Quarantine | Spotted Quarantine Guard 11151 | -3/Quarantine | Spotted Quarantine Guard 11154 | -3/Quarantine | Destroyed Quarantine Guard 11180 | -3/Quarantine | Destroyed Quarantine Guard 11335 | -3/Quarantine | Entered Research 11335 | -2/Research | Evolved 2 slots: Weapon x2 11377 | -2/Research | Discovered new exit (range 7) 11545 | -2/Research | Assimilating Master 9a into Collective. 11555 | -2/Research | Assimilating Terminator 9a into Collective. 11558 | -2/Research | Assimilating Master 9b into Collective. 11565 | -2/Research | Assimilating Engineer 9a into Collective. 11573 | -2/Research | Garrison activated, responded to threat 11620 | -2/Research | Identified Subatomic Replicator 11620 | -2/Research | Used Subatomic Replicator to replicate Master Drone Bay 11670 | -2/Research | Spotted B-90 Cyclops 11693 | -2/Research | Assimilating Enforcer 9a into Collective. 11700 | -2/Research | Master Drone dominated G-73 Enforcer. 11701 | -2/Research | Master Drone dominated B-90 Cyclops. 11726 | -2/Research | Lost 4 allies 11746 | -2/Research | Lost 5 parts (1n3u1w) 11780 | -2/Research | Found Corrupted Gamma Bomb Array 11835 | -2/Research | First assault squad dispatched 11838 | -2/Research | Assimilating Champion 9a into Collective. 11839 | -2/Research | Master Drone dominated B-74 Champion. 11846 | -2/Research | Master Drone dominated G-73 Enforcer. 11855 | -2/Research | Master Drone dominated H-88 Terminator. 11884 | -2/Research | Lost 3 allies 11906 | -2/Research | Assimilating Serf 9a into Collective. 11925 | -2/Research | Master Drone dominated G-73 Enforcer. 11930 | -2/Research | Master Drone dominated G-73 Enforcer. 11941 | -2/Research | Assimilating Enforcer 9f into Collective. 11960 | -2/Research | Lost 3 allies 11961 | -2/Research | Assimilating Administrator 9a into Collective. 11990 | -2/Research | Master Drone dominated H-88 Terminator. 11997 | -2/Research | Master Drone dominated H-88 Terminator. 12027 | -2/Research | Lost 3 allies 12037 | -2/Research | Master Drone dominated L-61 Swordsman. 12046 | -2/Research | Master Drone dominated G-73 Enforcer. 12048 | -2/Research | Master Drone dominated G-73 Enforcer. 12078 | -2/Research | Lost 4 allies 12187 | -2/Research | Spotted B-90 Cyclops 12191 | -2/Research | Master Drone dominated B-90 Cyclops. 12237 | -2/Research | Master Drone dominated G-73 Enforcer. 12244 | -2/Research | Master Drone dominated G-73 Enforcer. 12280 | -2/Research | Lost 3 parts (2n1u) 12356 | -2/Research | Assimilating Warden 9a into Collective. 12400 | -2/Research | Discovered new exit (range 8) 12426 | -2/Research | Assimilating Warden 9b into Collective. 12454 | -2/Research | Entered Access 12454 | -1/Access | Accompanied by 2 allies 12454 | -1/Access | Evolved 2 slots: Utility x2 12641 | -1/Access | Assimilating Terminator 10a into Collective. 12646 | -1/Access | Master Drone dominated H-88 Terminator. 12648 | -1/Access | Master Drone dominated H-88 Terminator. 12688 | -1/Access | Assimilating Director 10a into Collective. 12840 | -1/Access | Garrison activated, responded to threat 12924 | -1/Access | Assimilating Artificer 10a into Collective. 12954 | -1/Access | First assault squad dispatched 12962 | -1/Access | Assimilating Champion 10a into Collective. 12966 | -1/Access | Assimilating Swordsman 10a into Collective. 12966 | -1/Access | Master Drone dominated G-73 Enforcer. 13028 | -1/Access | Identified exit to Garrison 13032 | -1/Access | Entered Garrison 13032 | -1/Garrison | Accompanied by 6 allies 13088 | -1/Garrison | Build established: Scavenger-Assassin 13106 | -1/Garrison | Triggered checkpoint 13113 | -1/Garrison | Assimilating Enforcer 10b into Collective. 13118 | -1/Garrison | Master Drone dominated G-73 Enforcer. 13148 | -1/Garrison | Lost 3 allies 13225 | -1/Garrison | Spotted B-99 Colossus 13233 | -1/Garrison | Assimilating Champion 10b into Collective. 13240 | -1/Garrison | Triggered checkpoint 13242 | -1/Garrison | Assimilating Enforcer 10d into Collective. 13256 | -1/Garrison | Assimilating Enforcer 10e into Collective. 13261 | -1/Garrison | Triggered checkpoint 13261 | -1/Garrison | Master Drone dominated B-74 Champion. 13271 | -1/Garrison | Master Drone dominated B-99 Colossus. 13276 | -1/Garrison | Triggered checkpoint 13282 | -1/Garrison | Master Drone dominated S-43 Plague. 13287 | -1/Garrison | Master Drone dominated G-73 Enforcer. 13288 | -1/Garrison | Master Drone dominated G-73 Enforcer. 13303 | -1/Garrison | Master Drone dominated G-73 Enforcer. 13310 | -1/Garrison | Lost 9 parts (2p2n3u2w) 13332 | -1/Garrison | Lost 10 allies 13358 | -1/Garrison | Garrison Relay disabled 13444 | -1/Garrison | Triggered checkpoint 13530 | -1/Garrison | Triggered checkpoint 13554 | -1/Garrison | Triggered checkpoint 13588 | -1/Garrison | Triggered checkpoint 13672 | -1/Garrison | Build established: Scavenger-Executioner 13934 | -1/Garrison | Discovered new exit (range 13) 14080 | -1/Garrison | Phase Generator disabled 14111 | -1/Garrison | Entered Access 14111 | -1/Access | Accompanied by 3 allies 14241 | -1/Access | Spotted B-99 Colossus 14255 | -1/Access | Master Drone dominated B-99 Colossus. 14301 | -1/Access | Found Prototype Launcher 14301 | -1/Access | Identified Com. Tesla Bomb Launcher 14341 | -1/Access | Identified Matter Drive 14361 | -1/Access | First assault squad dispatched 14367 | -1/Access | Discovered new exit (range 4) 14396 | *** | Escaped! Last Messages --------------- 14306_ Destroyed Biometal Leg. 14306_ Slug penetrates Wall. 14306_ Slug penetrates H-88 Terminator. 14306_ Slug penetrates Mastered Colossus 10b. 14311_ K-01 Serf collects debris. 14320_ System corrupted: Matter fused (-10). 14320_ K-01 Serf collects debris. 14328_ ALERT: Potential suspicious activity detected, Programmers report to Access Zone 8N. 14341_ Identified Matter Drive. 14342_ System corrupted: Heat flow error (+204). 14358_ System corrupted: Energy discharge (-127). 14361_ ALERT: Unidentified disturbance in Zone 5C, multiple assault carriers dispatched. 14367_ Main Access Shell breached. 14367_ EXIT=FOUND 14367_ Sealed Heavy Doors breached. 14373_ System corrupted: Matter fused (-7). 14390_ System corrupted: Heat flow error (+287). [Achievement: On My Own Terms] Map ----- +----------------------------------------------------+ | ?????????????????????????????????????????????????? | | ?????????????????????????????????????????????????? | | ?????????????????????????????????????????????????? | | ?????????????????????????????????????????????????? | | ?????????????????????????????????????????????????? | | ?????????????????????????????????????????????????? | | ?????????????????????????????????????????????????? | | ?????????????????????????????????????????????????? | | ?????????????????????????????????????????????????? | | ?????????????????????????????????????????????????? | | ?????????????????????????????????????????????????? | | ?????????????????????????????????????????????????? | | ?????????????????????????????????????????????????? | | ?????????????????????????????????????????????????? | | ?????????????????????????????????????????????????? | | ?????????????????????????????????????????????????? | | ??????????? ????????????????????????????????????? | | ??????????? ??????????"""???????????????????????? | | ??????????? ??????????" "???????????????????????? | | ??????????? %#?????????" "???????????????????????? | | ??????##??? #???????""" "?"""#??????????????????? | | ?????? #% #???????? ? #??????????????????? | | ??????? #%%##???????" """ #??????????????????? | | ??????? #!%# ???????" " #??????????????????? | | ??????? %=*%%???????" "" " #??????????#???????? | | ??????? #!=[#???????" "@ " #???????? #???????? | | ??????? *=!%!" ???????" " #?????? #???????? | | ??????? =!="#????# ""x""" ###?? #???????? | | ??????? #=!"#????# " # #???????? | | ??????? # !!#????# """ #???????? | | #######+##" "#????"""""""""""""" #???????? | | ! ^ #?????#"" """ #???????? | | #?????#"" " # [[! #???????? | | % %%###???#"" ### [! #???????? | | !! #???#T #??? [! #???????? | | =%* #???#"" #??? #???????? | | != ] ###???#"" #???? #???????? | | #######"" #####+######???????? | | ??????? | | #### ?????? | | ####+###### #############################???????? | | ??? ????# #???????????????????????????????????? | | ??? ]????# #???????????????????????????????????? | | ?? ???+ +???????????????????????????????????? | | ?? ???# #???????????????????????????????????? | | ? ??# #????????#??????????????????????????? | | ? **??# #?????? #??????????????????????????? | | # **=?# #????? #??????????????????????????? | | # *==?# #??? ???????????????????????????? | | ########### #? ??????????????????????????????? | +----------------------------------------------------+ Best States ------------- Heat Dissipation 128 Coolant Potential 120 Energy Generation 41 Energy Capacity 715 Matter Stores 719 Matter Capacity 800 Sight Range 22 Robot Scan Range 18 Terrain Scan Density 10 Base Temperature (-) 200 Armor Coverage 1500 Resistance: TH 30 Power Shielding 90 Weapon Shielding 66 Phase Shifting 15 Evasion (%) 55 Targeting Accuracy 17 Target Analysis 8 Recoil Reduction 7 Particle Charging 25 Offensive Hacking 10 Item Schematics ----------------- Kinetic Spear | -3/Quarantine | Archive Adv. Variable Charge Gun | -3/Quarantine | Archive Enh. Biometal Leg | -3/Quarantine | Archive Exp. Terrain Scan Processor | -3/Quarantine | Archive Com. Particle Reactor | -3/Quarantine | Archive Exp. Matter Compressor | -3/Quarantine | Archive Hvy. Gatling Laser | -3/Quarantine | Archive Imp. Lightning Gun | -3/Quarantine | Archive Cld. Plasma Rifle | -3/Quarantine | Archive Vibroblade | -3/Quarantine | Archive Robot Schematics ------------------ S-43 Plague | -3/Quarantine | Archive M-36 Artificer | -3/Quarantine | Archive T-07 Excavator | -3/Quarantine | Archive Fabricated ------------ Nothing Repaired ---------- Nothing Studied --------- None Alien Tech Used ----------------- Transdimensional Reconstructor Phase Redirector Sigix Broadsword Core Stripper Subatomic Replicator Matter Drive Achievements -------------- On My Own Terms Uncivil War Challenges ------------ None Game ------ Seed RingImprinterWarhead Manual? 0 Play Time 02:07:14 Cumulative 1323.9 hours Start 2026.06.18 @ 12:24:24 End 2026.06.20 @ 14:14:07 Sessions 13 Manual Loads 0 Difficulty Rogue Special Mode None Game No. 1619 Rogue 1335 Adventurer 124 Explorer 160 Win Type 0 Total 65 Types 51/0/8/4/1/0/0/1/0/0 Lore% 93 Gallery% 84 Achievement% 71 Wizard Run 0 Options --------- Layout 0 ASCII 0 Keyboard 1 Movement Numpad Keybinds 0 Fullscreen 2 Font 18/X11 Map View 76x50 Zoom Use 0% Tactical HUD 1 Map Filters NONE Filters NONE Steam 1 RUN: 5d28581c-d9f8-4e95-8bc0-705c3557142c